bitfinex/quotes_SOLUSD_20250106
["timestamp","ask_amount","ask_price","bid_price","bid_amount"]
[1736128322055,9.29873998,214.01,213.95,9.29873998]
[1736128322266,2.06,214.11,213.97,23.776884]
[1736128322469,9.29873998,214.02,213.97,23.776884]
[1736128323247,9.29873998,213.98,213.85,12.09450231]
[1736128323492,9.29873998,213.97,213.9,17.18203998]
[1736128323660,9.29873998,213.94,213.9,7.8833]
[1736128324461,2.06,213.99,213.91,23.776884]
[1736128324693,2.06,214.04,213.94,9.29873998]
[1736128324979,14.42681056,214.02,213.95,0.70085766]
[1736128325189,2.06,214.04,213.97,14.42681056]
[1736128325190,14.42681056,214.03,213.97,14.42681056]
[1736128325655,2.06,214.18,214.02,23.776884]
[1736128325850,2.06,214.18,214.02,38.20369456]
[1736128326081,14.42681056,214.08,214.02,23.776884]
[1736128330161,14.42681056,214.08,214.02,14.42681056]
[1736128331795,14.42681056,214.09,214.03,14.42681056]
[1736128333805,14.42681056,214.1,214.03,14.42681056]
[1736128334508,14.42681,214.18,214.04,14.42681056]
[1736128334687,14.42681056,214.11,214.05,14.42681056]
[1736128335703,14.42681056,214.12,214.06,14.42681056]
[1736128336393,14.42681056,214.13,214.07,15.96441056]
[1736128336568,14.42681056,214.12,214.07,1.5376]
[1736128338512,2.06,214.17,214.07,1.5376]
[1736128338705,14.42681056,214.12,214.07,1.5376]
[1736128340719,2.06,214.16,214.07,15.96441056]
[1736128340920,14.42681056,214.13,214.07,15.96441056]
[1736128341105,14.42681056,214.12,214.07,1.5376]
[1736128341934,14.42681056,214.15,214.09,14.42681056]
[1736128342119,14.42681056,214.22,214.14,14.42681056]
[1736128342321,14.42681056,214.21,214.14,14.42681056]
[1736128342731,11.6678,214.27,214.15,14.42681056]
[1736128342925,14.42681056,214.23,214.16,14.42681056]
[1736128343315,14.42681056,214.21,214.14,6.0965]
[1736128343618,14.42681056,214.2,214.14,20.52331056]
[1736128343825,14.42681056,214.21,214.14,20.52331056]
[1736128345422,14.42681056,214.22,214.15,14.42681056]
[1736128346628,14.42681056,214.23,214.16,14.42681056]
[1736128348026,14.42681056,214.24,214.17,14.42681056]
[1736128348906,14.42681056,214.24,214.16,0.70022391]
[1736128349221,14.42681056,214.23,214.16,14.42681056]
[1736128350907,14.42681056,214.24,214.17,14.42681056]
[1736128351206,31.6664,214.29,214.18,14.42681056]
[1736128351422,31.6664,214.29,214.17,14.42681056]
[1736128351423,14.42681056,214.24,214.17,14.42681056]
[1736128351725,14.42681056,214.24,214.15,26.07960117]
[1736128351926,14.42681056,214.22,214.15,1.6025]
[1736128352233,1.5609,214.38,214.22,23.776884]
[1736128352408,14.42681056,214.33,214.27,14.42681056]
[1736128352732,14.42681056,214.34,214.27,14.42681056]
[1736128353104,9.2058104,214.34,214.27,9.2058104]
[1736128353324,30.0,214.56,214.23,6.2792]
[1736128353325,1.557,214.49,214.33,9.2058104]
[1736128353539,2.06,214.48,214.34,0.6996444]
[1736128353741,9.2058104,214.39,214.31,20.0]
[1736128353946,9.2058104,214.39,214.32,9.2058104]
[1736128354244,20.0,214.46,214.34,9.2058104]
[1736128354418,2.06,214.45,214.36,9.2058104]
[1736128354712,9.2058104,214.44,214.36,9.2058104]
[1736128354912,13.213,214.49,214.37,9.2058104]
[1736128355150,14.37072918,214.45,214.38,14.37072918]
[1736128355316,14.37072918,214.44,214.37,14.37072918]
[1736128356039,14.37072918,214.45,214.38,14.37072918]
[1736128356219,14.37072918,214.44,214.37,14.37072918]
[1736128356924,2.06,214.46,214.37,14.37072918]
[1736128357123,14.37072918,214.44,214.37,14.37072918]
[1736128357726,2.06,214.46,214.37,14.37072918]
[1736128357914,14.37072918,214.43,214.36,14.37072918]
[1736128358818,14.37072918,214.4,214.33,14.37072918]
[1736128359019,14.37072918,214.37,214.31,14.37072918]
[1736128359215,14.37072918,214.38,214.31,14.37072918]
[1736128359629,14.37072918,214.36,214.3,15.07044343]
[1736128359824,14.37072918,214.37,214.31,34.37072918]
[1736128360043,14.37072918,214.38,214.31,34.37072918]
[1736128360257,14.37072918,214.37,214.31,20.0]
[1736128360417,14.37072918,214.36,214.31,20.0]
[1736128360621,14.37072918,214.37,214.31,20.0]
[1736128361359,14.37072918,214.39,214.32,14.37072918]
[1736128361659,14.37072918,214.39,214.33,14.37072918]
[1736128361824,19.37072918,214.5,214.31,20.69974913]
[1736128361825,1.86279904,214.54,214.37,38.14761318]
[1736128362028,14.37072918,214.51,214.44,14.37072918]
[1736128362552,14.37072918,214.5,214.43,14.37072918]
[1736128362862,2.06,214.53,214.44,14.37072918]
[1736128363238,2.06,214.53,214.4,0.69936873]
[1736128363239,14.37072918,214.49,214.42,14.37072918]
[1736128363556,14.37072918,214.48,214.41,14.37072918]
[1736128364265,2.06,214.49,214.4,14.37072918]
[1736128364480,14.37072918,214.47,214.4,14.37072918]
[1736128364961,2.06,214.49,214.4,14.37072918]
[1736128365143,14.37072918,214.48,214.41,14.37072918]
[1736128367128,2.06,214.49,214.42,14.37072918]
[1736128367351,2.06,214.49,214.43,14.37072918]
[1736128367937,2.04,214.52,214.44,14.37072918]
[1736128368141,14.37072918,214.51,214.43,14.37072918]
[1736128369181,14.37072918,214.48,214.41,14.37072918]
[1736128369391,14.37072918,214.47,214.4,34.37072918]
[1736128369754,14.37072918,214.48,214.41,14.37072918]
[1736128370250,14.37072918,214.49,214.42,14.37072918]
[1736128370559,20.0,214.57,214.46,14.37072918]
[1736128370755,14.37072918,214.53,214.46,14.37072918]
[1736128370973,14.37072918,214.54,214.47,14.37072918]
[1736128372286,13.3153,214.6,214.48,14.37072918]
[1736128372491,14.37072918,214.54,214.48,14.37072918]
[1736128372958,14.37072918,214.55,214.49,14.37072918]
[1736128373284,3.7057,214.6,214.52,14.37072918]
[1736128373587,14.37072918,214.57,214.5,14.37072918]
[1736128373798,14.37072918,214.56,214.49,14.37072918]
[1736128374090,14.37072918,214.56,214.49,20.0]
[1736128374380,14.37072918,214.56,214.5,14.37072918]
[1736128375054,14.37072918,214.56,214.49,34.37072918]
[1736128375259,14.37072918,214.56,214.5,14.37072918]
[1736128375780,21.5786,214.65,214.53,14.37072918]
[1736128376090,14.37072918,214.6,214.53,14.37072918]
[1736128376398,14.37072918,214.59,214.53,14.37072918]
[1736128376556,2.04,214.62,214.52,14.37072918]
[1736128376758,14.37072918,214.6,214.54,14.37072918]
[1736128376973,14.37072918,214.59,214.53,14.37072918]
[1736128378674,14.37072918,214.59,214.52,14.37072918]
[1736128379520,14.37072918,214.53,214.46,1.501]
[1736128379662,14.37072918,214.53,214.47,14.37072918]
[1736128379859,14.37072918,214.54,214.48,14.37072918]
[1736128380561,14.37072918,214.53,214.46,15.07000784]
[1736128380781,14.37072918,214.53,214.46,14.37072918]
[1736128380985,14.37072918,214.54,214.47,14.37072918]
[1736128381292,14.37072918,214.58,214.51,14.37072918]
[1736128381594,16.51072918,214.61,214.54,14.37072918]
[1736128381891,14.37072918,214.6,214.53,14.37072918]
[1736128382695,2.14,214.63,214.55,14.37072918]
[1736128383004,3.7186,214.65,214.56,14.37072918]
[1736128383332,14.37072918,214.63,214.56,14.37072918]
[1736128383528,14.37072918,214.62,214.54,0.69901241]
[1736128383819,14.37072918,214.59,214.53,14.37072918]
[1736128384334,14.37072918,214.6,214.53,14.37072918]
[1736128385133,14.37072918,214.59,214.52,35.06966911]
[1736128385913,14.37072918,214.59,214.52,15.06966911]
[1736128386098,14.37072918,214.59,214.52,14.37072918]
[1736128386902,20.60252918,214.61,214.43,2.23519976]
[1736128387105,14.37072918,214.5,214.43,16.60592894]
[1736128387310,20.60252918,214.61,214.43,16.60592894]
[1736128387311,14.37072918,214.53,214.46,14.37072918]
[1736128387624,2.14,214.56,214.47,0.69930032]
[1736128387830,2.14,214.56,214.47,20.69930032]
[1736128388013,14.37072918,214.6,214.53,14.37072918]
[1736128388215,2.14,214.6,214.54,14.37072918]
[1736128388401,6.2318,214.67,214.55,14.37072918]
[1736128388402,16.51072918,214.62,214.55,14.37072918]
[1736128388904,2.14,214.62,214.56,14.37072918]
[1736128389317,16.51072918,214.62,214.55,14.37072918]
[1736128389942,14.37072918,214.63,214.56,14.37072918]
[1736128390137,2.14,214.65,214.55,0.69892862]
[1736128390355,14.37072918,214.63,214.56,14.37072918]
[1736128390835,14.37072918,214.64,214.57,14.37072918]
[1736128391912,14.37072918,214.64,214.55,0.6988941]
[1736128391913,20.0,214.69,214.58,15.06962187]
[1736128392114,14.37072918,214.65,214.59,14.37072918]
[1736128392320,14.37072918,214.64,214.58,14.37072918]
[1736128392844,14.37072918,214.64,214.59,0.69881357]
[1736128393049,14.37072918,214.64,214.57,14.37072918]
[1736128393207,14.37072918,214.64,214.58,15.06953503]
[1736128393626,1.65,214.7,214.6,14.37072918]
[1736128393831,14.37072918,214.67,214.61,14.37072918]
[1736128394020,2.14,214.73,214.63,14.37072918]
[1736128394215,0.02045071,214.77,214.65,22.02802918]
[1736128394516,0.02045071,214.77,214.59,8.35591694]
[1736128394739,14.37072918,214.68,214.62,14.37072918]
[1736128394908,14.37072918,214.68,214.59,8.35591694]
[1736128394909,0.02045071,214.77,214.66,14.37072918]
[1736128395110,14.37072918,214.75,214.68,14.37072918]
[1736128395354,14.37072918,214.75,214.69,15.06926028]
[1736128395652,0.02045071,214.77,214.69,15.06926028]
[1736128395816,0.02045071,214.77,214.7,14.37072918]
[1736128395817,14.37072918,214.76,214.7,14.37072918]
[1736128396144,0.02045071,214.77,214.72,14.37072918]
[1736128396346,0.02045071,214.77,214.74,14.37072918]
[1736128396543,0.02045071,214.77,214.75,0.69825962]
[1736128396843,0.02045071,214.77,214.75,15.0689888]
[1736128397009,0.02045071,214.77,214.75,0.69825962]
[1736128397211,0.03162969,214.77,214.75,0.69825962]
[1736128397515,0.03162969,214.77,214.75,15.0689888]
[1736128397912,0.03162969,214.77,214.75,0.69825962]
[1736128398312,0.03162969,214.77,214.74,14.37072918]
[1736128398534,14.37072918,214.81,214.75,15.06903647]
[1736128398832,14.37072918,214.81,214.76,14.37072918]
[1736128399133,11.6311,214.95,214.8,14.37072918]
[1736128399433,11.6311,214.95,214.88,14.37072918]
[1736128399434,16.51072918,214.95,214.88,14.37072918]
[1736128399641,2.14,214.95,214.89,14.37072918]
[1736128399818,14.37072918,214.96,214.89,14.37072918]
[1736128400023,14.37072918,214.9,214.84,6.2313]
[1736128400338,14.37072918,214.92,214.86,14.37072918]
[1736128400507,14.37072918,214.94,214.87,14.37072918]
[1736128400931,5.0,215.06,214.84,6.2313]
[1736128400932,8.1765,215.03,214.88,0.69787522]
[1736128401126,14.37072918,215.01,214.95,14.37072918]
[1736128401327,14.37072918,215.0,214.94,14.37072918]
[1736128401721,14.37072918,215.03,214.97,14.37072918]
[1736128401920,3.82,215.05,214.98,14.37072918]
[1736128402104,3.82,215.05,214.99,14.37072918]
[1736128402105,15.87072918,215.05,214.99,14.37072918]
[1736128402310,15.87072918,215.05,214.89,23.776884]
[1736128402311,1.5,215.05,215.02,14.37072918]
[1736128402646,1.5,215.05,215.03,14.37072918]
[1736128402807,1.5,215.05,215.04,15.06802155]
[1736128403011,1.5,215.05,215.04,47.32203729]
[1736128403326,1.5,215.05,215.04,23.54515329]
[1736128403528,6.5558,215.3,215.09,23.776884]
[1736128403841,22.84786092,215.23,215.16,22.84786092]
[1736128404042,22.84786092,215.23,215.17,0.69692324]
[1736128404226,22.84786092,215.23,215.17,23.54478416]
[1736128404539,22.84786092,215.18,215.11,0.69685888]
[1736128404712,22.84786092,215.14,215.11,0.69685888]
[1736128404911,22.84786092,215.13,215.08,0.69713622]
[1736128405114,22.84786092,215.12,215.03,0.69713622]
[1736128405320,22.84786092,215.17,215.11,22.84786092]
[1736128405519,22.84786092,215.18,215.12,23.54494399]
[1736128405920,22.84786092,215.27,215.15,22.84786092]
[1736128406126,22.84786092,215.24,215.17,22.84786092]
[1736128406340,22.84786092,215.24,215.18,0.69688933]
[1736128406648,22.84786092,215.23,215.18,0.69688933]
[1736128407449,22.84786092,215.22,215.18,0.69688933]
[1736128407638,22.84786092,215.23,215.19,0.69689169]
[1736128408038,22.84786092,215.27,215.21,22.84786092]
[1736128408220,22.84786092,215.23,215.16,0.69670893]
[1736128408418,22.84786092,215.21,215.16,0.69670893]
[1736128408623,22.84786092,215.27,215.16,0.69670893]
[1736128408828,20.0,215.33,215.18,22.84786092]
[1736128409049,22.84786092,215.25,215.19,0.69677206]
[1736128409257,22.84786092,215.24,215.19,0.69677206]
[1736128409569,22.84786092,215.22,215.19,0.69677206]
[1736128409721,22.84786092,215.2,215.12,0.69686159]
[1736128410046,22.84786092,215.15,215.09,0.69700595]
[1736128410255,22.84786092,215.17,215.11,22.84786092]
[1736128410443,2.32,215.22,215.12,0.69702562]
[1736128411323,20.0,215.27,215.13,0.69701891]
[1736128411572,22.84786092,215.18,215.11,22.84786092]
[1736128411730,22.84786092,215.16,215.12,0.69701388]
[1736128411922,22.84786092,215.14,215.12,0.69701388]
[1736128412130,2.32,215.22,215.08,6.1923]
[1736128412131,22.84786092,215.13,215.08,0.6970664]
[1736128412329,22.84786092,215.09,215.04,0.6970664]
[1736128412641,22.84786092,215.05,215.01,6.6169]
[1736128412954,22.84786092,215.06,215.01,6.6169]
[1736128413158,22.84786092,215.07,215.01,6.6169]
[1736128413384,22.84786092,215.07,215.01,29.46476092]
[1736128413564,22.84786092,215.07,215.01,6.6169]
[1736128413760,22.84786092,215.07,215.01,29.46476092]
[1736128413966,22.84786092,215.11,215.04,22.84786092]
[1736128414170,22.84786092,215.12,215.05,23.54513089]
[1736128414375,11.6165,215.22,215.08,22.84786092]
[1736128414588,22.84786092,215.18,215.1,22.84786092]
[1736128414754,22.84786092,215.17,215.11,0.69711744]
[1736128415068,22.84786092,215.15,215.11,0.69711744]
[1736128415258,22.84786092,215.15,215.09,0.69714413]
[1736128415452,22.84786092,215.16,215.09,0.69714413]
[1736128415672,22.84786092,215.13,215.09,0.69714413]
[1736128415855,22.84786092,215.13,215.07,0.69712802]
[1736128416181,22.84786092,215.1,215.07,0.69712802]
[1736128416391,22.84786092,215.08,215.02,0.69728699]
[1736128416558,22.84786092,215.07,215.02,0.69728699]
[1736128417061,22.84786092,215.06,215.02,0.69728699]
[1736128417265,22.84786092,215.12,215.04,22.84786092]
[1736128417459,25.16786092,215.13,215.05,23.54510933]
[1736128417756,22.84786092,215.12,215.05,23.54510933]
[1736128417957,22.84786092,215.12,215.05,0.69724841]
[1736128418792,0.22299762,215.11,215.03,22.84786092]
[1736128419097,22.84786092,215.09,215.01,29.46476092]
[1736128419389,22.84786092,215.08,215.03,0.69724174]
[1736128419761,22.84786092,215.09,215.03,0.69724174]
[1736128419986,22.84786092,215.06,215.01,7.31421555]
[1736128420170,22.84786092,215.04,214.98,1.6251]
[1736128420382,22.84786092,215.06,214.99,23.54532264]
[1736128420691,22.84786092,215.07,215.0,22.84786092]
[1736128420889,2.32,215.13,214.98,1.6251]
[1736128420890,22.84786092,215.08,215.01,23.54525313]
[1736128421081,22.84786092,215.11,215.03,22.84786092]
[1736128421276,22.84786092,215.11,215.04,23.54516492]
[1736128421876,22.84786092,215.12,215.05,22.84786092]
[1736128422073,22.84786092,215.13,215.06,0.69722969]
[1736128422276,22.84786092,215.12,215.05,22.84786092]
[1736128422584,22.84786092,215.12,215.06,0.69724463]
[1736128423390,22.84786092,215.11,215.06,0.69724463]
[1736128423692,22.84786092,215.1,215.04,0.69722366]
[1736128423891,22.84786092,215.12,215.04,0.69722366]
[1736128424087,22.84786092,215.12,215.05,22.84786092]
[1736128424395,22.84786092,215.06,214.9,6.3816]
[1736128424572,22.84786092,214.99,214.9,6.3816]
[1736128424768,22.84786092,215.01,214.91,23.545508]
[1736128424989,22.84786092,215.03,214.95,22.84786092]
[1736128425195,22.84786092,215.05,214.97,22.84786092]
[1736128425382,22.84786092,215.05,214.98,0.69744126]
[1736128425891,2.32,215.06,214.98,0.69744126]
[1736128426098,22.84786092,215.07,214.99,22.84786092]
[1736128426274,22.84786092,215.07,215.0,0.69741745]
[1736128426469,22.84786092,215.05,215.0,0.69741745]
[1736128426672,22.84786092,215.05,214.98,0.69748227]
[1736128429582,22.84786092,215.07,214.99,22.84786092]
[1736128429898,22.84786092,215.08,215.01,22.84786092]
[1736128430068,2.32,215.1,215.0,23.54523518]
[1736128430069,22.84786092,215.07,215.0,23.54523518]
[1736128430492,22.84786092,215.07,215.0,0.69737426]
[1736128430700,22.84786092,215.06,215.0,0.69737426]
[1736128431005,22.84786092,215.04,214.97,42.84786092]
[1736128431202,22.84786092,215.04,214.98,0.69739687]
[1736128431388,2.32,215.1,214.98,0.69739687]
[1736128431389,22.84786092,215.05,214.98,0.69739687]
[1736128432017,22.84786092,215.04,214.98,0.69739687]
[1736128432703,22.84786092,215.05,214.98,0.69739687]
[1736128433500,22.84786092,215.07,214.99,22.84786092]
[1736128433706,22.84786092,215.09,215.02,22.84786092]
[1736128433908,22.84786092,215.11,215.03,23.5451821]
[1736128434215,22.84786092,215.11,215.04,22.84786092]
[1736128434502,22.84786092,215.1,215.05,0.69727439]
[1736128435110,22.84786092,215.09,215.05,0.69727439]
[1736128435404,22.84786092,215.09,215.03,6.79909228]
[1736128436107,22.84786092,215.07,215.03,6.79909228]
[1736128436406,22.84786092,215.04,215.0,1.5272]
[1736128436590,22.84786092,215.02,214.98,6.538]
[1736128436794,22.84786092,215.01,214.98,6.538]
[1736128437312,22.84786092,214.99,214.95,1.578]
[1736128437899,22.84786092,215.0,214.95,1.578]
[1736128438221,22.84786092,215.01,214.95,1.578]
[1736128438623,22.84786092,215.01,214.96,0.6975832]
[1736128439016,22.84786092,215.03,214.97,22.84786092]
[1736128439197,22.84786092,215.04,214.97,22.84786092]
[1736128439706,22.84786092,215.02,214.96,22.84786092]
[1736128439906,22.84786092,215.01,214.95,25.12338831]
[1736128440606,22.84786092,215.02,214.95,25.12338831]
[1736128441802,22.84786092,215.04,214.98,22.84786092]
[1736128441998,22.84786092,215.05,214.98,22.84786092]
[1736128442420,22.84786092,215.04,214.98,22.84786092]
[1736128442618,22.84786092,215.04,214.99,0.69748525]
[1736128443433,22.84786092,215.01,214.95,1.578]
[1736128443728,22.84786092,215.0,214.93,29.65562002]
[1736128443894,2.44,215.07,214.95,0.6975591]
[1736128444299,0.6972,215.06,214.95,0.6975591]
[1736128444627,0.6972,215.06,214.94,0.69761373]
[1736128445423,22.84786092,215.0,214.94,0.69761373]
[1736128446604,22.84786092,215.02,214.95,22.84786092]
[1736128446815,22.84786092,215.03,214.96,23.54544117]
[1736128447217,0.6972,215.07,214.97,22.84786092]
[1736128447406,22.84786092,215.08,215.0,22.84786092]
[1736128447603,22.84786092,215.09,215.02,22.84786092]
[1736128447809,6.0939,215.15,215.04,22.84786092]
[1736128447810,22.84786092,215.11,215.04,22.84786092]
[1736128448000,22.84786092,215.11,215.05,0.69732085]
[1736128448203,2.44,215.13,215.05,0.69732085]
[1736128448204,2.44,215.13,215.07,22.84786092]
[1736128448402,22.84786092,215.16,215.09,22.84786092]
[1736128448612,22.84786092,215.16,215.04,6.2433]
[1736128448613,22.84786092,215.21,215.14,22.84786092]
[1736128448816,22.84786092,215.22,215.15,23.54488375]
[1736128449319,22.84786092,215.24,215.17,22.84786092]
[1736128449507,22.84786092,215.24,215.18,0.69685328]
[1736128449828,47.25122184,215.19,215.02,22.84786092]
[1736128450018,22.84786092,215.1,215.03,23.1970671]
[1736128450209,22.84786092,215.11,215.04,22.84786092]
[1736128450526,22.84786092,215.13,215.06,22.84786092]
[1736128450816,22.84786092,215.13,215.07,0.34892449]
[1736128451028,2.44,215.16,215.02,0.34898085]
[1736128451029,22.84786092,215.08,215.02,0.34898085]
[1736128451237,22.84786092,215.03,214.94,6.84630412]
[1736128451411,22.84786092,214.95,214.94,6.84630412]
[1736128451820,22.84786092,214.96,214.91,13.08960412]
[1736128452409,22.84786092,214.96,214.92,0.35015467]
[1736128453216,25.28786092,214.99,214.92,0.35015467]
[1736128453417,25.28786092,214.99,214.92,23.19801559]
[1736128453628,22.84786092,214.99,214.92,23.19801559]
[1736128454422,22.84786092,215.0,214.93,22.84786092]
[1736128454619,22.84786092,215.01,214.94,23.19785904]
[1736128454832,22.84786092,215.02,214.95,22.84786092]
[1736128455040,22.84786092,215.02,214.96,0.34988382]
[1736128455438,22.84786092,215.03,214.96,23.19774474]
[1736128455821,22.84786092,215.04,214.97,22.84786092]
[1736128456043,22.84786092,215.03,214.98,0.34963791]
[1736128456241,0.87192176,215.11,214.98,23.19749883]
[1736128456242,22.84786092,215.06,214.98,23.19749883]
[1736128456440,22.84786092,215.09,215.02,22.84786092]
[1736128456655,22.84786092,215.12,215.04,22.84786092]
[1736128456825,22.84786092,215.12,215.05,23.19708546]
[1736128457518,22.84786092,215.13,215.06,22.84786092]
[1736128457723,22.84786092,215.13,215.07,0.34894219]
[1736128458146,22.84786092,215.15,215.08,22.84786092]
[1736128458326,22.84786092,215.16,215.09,23.19659616]
[1736128458541,22.84786092,215.15,215.09,0.34873524]
[1736128458735,22.84786092,215.17,215.1,22.84786092]
[1736128459056,22.84786092,215.19,215.12,22.84786092]
[1736128459251,22.84786092,215.2,215.13,23.19639491]
[1736128459559,22.84786092,215.15,215.09,0.34852857]
[1736128459926,22.84786092,215.16,215.09,23.19638949]
[1736128460452,22.84786092,215.14,215.09,0.34852857]
[1736128460641,22.84786092,215.16,215.09,23.19638949]
[1736128461162,22.84786092,215.11,215.04,23.19661944]
[1736128461469,22.84786092,215.1,215.04,0.34875852]
[1736128462183,22.84786092,215.12,215.05,22.84786092]
[1736128462330,22.84786092,215.11,215.06,0.34910767]
[1736128462724,22.84786092,215.1,215.04,0.34918547]
[1736128462921,22.84786092,215.11,215.04,23.19704639]
[1736128463137,22.84786092,215.08,215.04,0.34918547]
[1736128463344,22.84786092,215.07,215.02,6.91355637]
[1736128464477,22.84786092,215.08,215.02,6.91355637]
[1736128464840,2.48,215.13,215.06,22.84786092]
[1736128465044,22.84786092,215.15,215.08,22.84786092]
[1736128465262,22.84786092,215.14,215.09,0.348925]
[1736128465444,22.84786092,215.13,215.09,0.348925]
[1736128466165,22.84786092,215.13,215.07,0.3489701]
[1736128466370,22.84786092,215.13,215.07,23.19683102]
[1736128466573,22.84786092,215.17,215.1,22.84786092]
[1736128466736,22.84786092,215.17,215.11,0.34873502]
[1736128466935,22.84786092,215.18,215.11,23.19659594]
[1736128467142,22.84786092,215.19,215.12,22.84786092]
[1736128467340,22.84786092,215.19,215.13,0.34854802]
[1736128467573,25.32786092,215.21,215.14,22.84786092]
[1736128467748,22.84786092,215.22,215.15,23.19618199]
[1736128467947,22.84786092,215.23,215.16,22.84786092]
[1736128468150,22.84786092,215.22,215.17,0.34816743]
[1736128469172,22.84786092,215.21,215.17,0.34816743]
[1736128469776,22.84786092,215.18,215.1,23.19623219]
[1736128470080,22.84786092,215.16,215.1,0.34837127]
[1736128470259,22.84786092,215.15,215.1,0.34837127]
[1736128470457,22.84786092,215.16,215.1,23.19623219]
[1736128470659,22.84786092,215.18,215.11,22.84786092]
[1736128470852,22.84786092,215.18,215.08,8.2832]
[1736128470853,22.84786092,215.18,215.12,23.19628868]
[1736128471050,22.84786092,215.19,215.12,23.19628868]
[1736128471349,22.84786092,215.19,215.13,22.84786092]
[1736128471549,22.84786092,215.19,215.14,0.34835195]
[1736128473071,22.84786092,215.18,215.14,0.34835195]
[1736128473455,22.84786092,215.17,215.12,0.34845037]
[1736128473655,22.84786092,215.18,215.12,0.34845037]
[1736128474464,22.84786092,215.17,215.12,0.34845037]
[1736128474872,22.84786092,215.18,215.12,23.19631129]
[1736128475072,22.84786092,215.19,215.12,23.19631129]
[1736128475277,22.84786092,215.19,215.13,22.84786092]
[1736128475458,22.84786092,215.2,215.14,23.1962541]
[1736128476276,22.84786092,215.2,215.14,0.34839318]
[1736128476483,22.84786092,215.2,215.09,23.776884]
[1736128476484,22.84786092,215.2,215.13,22.84786092]
[1736128476779,22.84786092,215.21,215.14,23.19616253]
[1736128478384,22.84786092,215.2,215.14,0.34830161]
[1736128479886,20.34786092,215.2,215.14,0.34830161]
[1736128480400,22.84786092,215.17,215.1,23.19624443]
[1736128480768,22.84786092,215.16,215.1,0.34838351]
[1736128481790,22.84786092,215.17,215.1,23.19624443]
[1736128482483,22.84786092,215.13,215.08,8.2832]
[1736128482667,22.84786092,215.12,215.08,8.2832]
[1736128483400,22.84786092,215.11,215.06,0.34863453]
[1736128483564,22.84786092,215.11,215.05,0.34906619]
[1736128484268,22.84786092,215.11,215.05,23.19692711]
[1736128484582,22.84786092,215.12,215.05,23.19692711]
[1736128485681,22.84786092,215.12,215.06,22.84786092]
[1736128485879,22.84786092,215.13,215.07,0.34903856]
[1736128486779,3.35154118,215.19,215.07,0.34903856]
[1736128486780,22.84786092,215.11,215.07,0.34903856]
[1736128486988,22.84786092,215.08,215.02,1.5783]
[1736128487168,22.84786092,215.07,215.02,1.5783]
[1736128487491,22.84786092,215.03,214.96,23.19741092]
[1736128487663,0.87178793,215.15,214.96,0.34955]
[1736128487863,2.48,215.14,214.96,24.126434]
[1736128488072,22.84786092,215.16,214.96,24.126434]
[1736128488073,3.35168114,215.2,215.0,23.776884]
[1736128488374,0.87168114,215.2,215.05,1.5421]
[1736128488569,2.48,215.23,215.09,20.0]
[1736128488777,22.84786092,215.22,215.15,22.84786092]
[1736128488986,22.84786092,215.21,215.15,22.84786092]
[1736128489917,22.84786092,215.2,215.14,22.84786092]
[1736128490200,22.84786092,215.21,215.14,22.84786092]
[1736128490376,22.84786092,215.21,215.15,0.3484748]
[1736128490698,22.84786092,215.21,215.15,23.19633572]
[1736128491697,0.8712368,215.25,215.18,22.84786092]
[1736128491872,22.84786092,215.26,215.2,22.84786092]
[1736128494203,22.84786092,215.26,215.21,0.34804192]
[1736128494396,22.84786092,215.25,215.21,0.34804192]
[1736128494604,22.84786092,215.25,215.19,22.84786092]
[1736128494892,22.84786092,215.25,215.2,0.34801785]
[1736128495600,22.84786092,215.26,215.2,23.19587877]
[1736128496103,22.84786092,215.27,215.21,22.84786092]
[1736128496279,22.84786092,215.26,215.2,23.19584645]
[1736128497383,22.84786092,215.28,215.23,22.84786092]
[1736128497586,22.84786092,215.29,215.23,22.84786092]
[1736128497900,6.1634,215.36,215.2,0.34782834]
[1736128497901,22.84786092,215.28,215.22,22.84786092]
[1736128498407,22.84786092,215.27,215.21,22.84786092]
[1736128498601,22.84786092,215.28,215.22,23.19572363]
[1736128498898,22.84786092,215.29,215.23,22.84786092]
[1736128499103,22.84786092,215.3,215.24,23.19559056]
[1736128499407,22.84786092,215.29,215.24,23.19559056]
[1736128500588,20.34786092,215.29,215.24,0.34772964]
[1736128500898,22.84786092,215.28,215.22,28.99946092]
[1736128501107,22.84786092,215.28,215.23,23.1956135]
[1736128502000,22.84786092,215.28,215.23,0.34775258]
[1736128502201,22.84786092,215.28,215.23,23.1956135]
[1736128502503,22.84786092,215.28,215.23,22.84786092]
[1736128502881,22.84786092,215.26,215.22,6.1516]
[1736128503082,22.84786092,215.25,215.19,22.84786092]
[1736128503385,22.84786092,215.27,215.21,22.84786092]
[1736128503588,22.84786092,215.28,215.22,23.19563523]
[1736128503782,22.84786092,215.28,215.22,22.84786092]
[1736128503988,22.84786092,215.26,215.2,22.84786092]
[1736128504202,22.84786092,215.28,215.22,22.84786092]
[1736128504406,22.84786092,215.27,215.21,23.19579129]